[Event "Titled Tuesday Blitz December 20 Early 2022"]
[White "Mileo, Miguelito"]
[Black "Nau, Guenter"]
[WhiteFideId "851108"]
[BlackFideId "4661419"]
[WhiteElo "1721"]
[BlackElo "2205"]
[Result "1-0"]
[Round "07"]
[TimeControl "180+2"]
[Date "2022.12.20"]
[WhiteClock "0:01:57"]
[BlackClock "0:00:05"]

1. e4 {[%clk 0:03:00]}  c5 {[%clk 0:02:59]} 2. d4 {[%clk 0:02:59]}  cxd4 {[%clk 0:02:59]} 3. c3 {[%clk 0:03:00]}  d3 {[%clk 0:02:58]} 4. c4 {[%clk 0:02:59]}  Nc6 {[%clk 0:02:57]} 5. Nc3 {[%clk 0:02:59]}  g6 {[%clk 0:02:58]} 6. Bxd3 {[%clk 0:02:59]}  Bg7 {[%clk 0:02:58]} 7. Nge2 {[%clk 0:03:00]}  Nf6 {[%clk 0:02:58]} 8. O-O {[%clk 0:03:01]}  O-O {[%clk 0:02:58]} 9. Bg5 {[%clk 0:03:01]}  h6 {[%clk 0:02:51]} 10. Bh4 {[%clk 0:03:00]}  d6 {[%clk 0:02:51]} 11. Re1 {[%clk 0:03:00]}  Be6 {[%clk 0:02:49]} 12. Rc1 {[%clk 0:02:55]}  Rc8 {[%clk 0:02:47]} 13. b3 {[%clk 0:02:55]}  a6 {[%clk 0:02:42]} 14. Nd5 {[%clk 0:02:54]}  g5 {[%clk 0:02:31]} 15. Bg3 {[%clk 0:02:51]}  Nh5 {[%clk 0:02:16]} 16. Bb1 {[%clk 0:02:49]}  Nxg3 {[%clk 0:02:16]} 17. Nxg3 {[%clk 0:02:48]}  Be5 {[%clk 0:02:05]} 18. Qh5 {[%clk 0:02:46]}  Kg7 {[%clk 0:01:53]} 19. Nf5+ {[%clk 0:02:46]}  Bxf5 {[%clk 0:01:53]} 20. exf5 {[%clk 0:02:47]}  Bf6 {[%clk 0:01:12]} 21. Rcd1 {[%clk 0:02:20]}  Qa5 {[%clk 0:00:28]} 22. Re3 {[%clk 0:02:12]}  Rh8 {[%clk 0:00:12]} 23. h4 {[%clk 0:02:11]}  gxh4 {[%clk 0:00:08]} 24. Nxf6 {[%clk 0:02:01]}  exf6 {[%clk 0:00:05]} 25. Qxh4 {[%clk 0:01:57]} 1-0


[Site "https://www.chess.com"]

[Event "Titled Tuesday Blitz December 20 Early 2022"]
[White "Mitrabha, Guha"]
[Black "Makswolf200817"]
[WhiteFideId "5057000"]
[WhiteElo "2507"]
[BlackElo "2651"]
[Result "0-1"]
[Round "07"]
[TimeControl "180+2"]
[Date "2022.12.20"]
[WhiteClock "0:00:00"]
[BlackClock "0:00:17"]

1. Nf3 {[%clk 0:00:11]}  d5 {[%clk 0:02:54]} 2. g3 {[%clk 0:00:12]}  Bg4 {[%clk 0:02:53]} 3. Bg2 {[%clk 0:00:12]}  c6 {[%clk 0:02:53]} 4. O-O {[%clk 0:00:13]}  e6 {[%clk 0:02:53]} 5. c4 {[%clk 0:00:14]}  Nf6 {[%clk 0:02:52]} 6. d4 {[%clk 0:00:14]}  Nbd7 {[%clk 0:02:50]} 7. Nc3 {[%clk 0:00:14]}  Bd6 {[%clk 0:02:46]} 8. Qb3 {[%clk 0:00:15]}  Qc8 {[%clk 0:02:28]} 9. Bg5 {[%clk 0:00:13]}  O-O {[%clk 0:02:26]} 10. Rac1 {[%clk 0:00:12]}  h6 {[%clk 0:02:23]} 11. Bxf6 {[%clk 0:00:12]}  Nxf6 {[%clk 0:02:24]} 12. Rfe1 {[%clk 0:00:13]}  Re8 {[%clk 0:02:00]} 13. Ne5 {[%clk 0:00:13]}  Bh5 {[%clk 0:01:24]} 14. cxd5 {[%clk 0:00:11]}  exd5 {[%clk 0:01:25]} 15. f4 {[%clk 0:00:10]}  Bc7 {[%clk 0:01:12]} 16. e3 {[%clk 0:00:08]}  Nh7 {[%clk 0:01:04]} 17. e4 {[%clk 0:00:06]}  dxe4 {[%clk 0:01:01]} 18. Nxe4 {[%clk 0:00:06]}  Nf8 {[%clk 0:00:51]} 19. h3 {[%clk 0:00:05]}  Bb6 {[%clk 0:00:32]} 20. Qc4 {[%clk 0:00:03]}  Qd8 {[%clk 0:00:31]} 21. Nc5 {[%clk 0:00:03]}  Re7 {[%clk 0:00:30]} 22. g4 {[%clk 0:00:03]}  Bg6 {[%clk 0:00:30]} 23. f5 {[%clk 0:00:04]}  Bh7 {[%clk 0:00:30]} 24. Kh1 {[%clk 0:00:05]}  Qc7 {[%clk 0:00:28]} 25. Ncd3 {[%clk 0:00:03]}  Rd8 {[%clk 0:00:28]} 26. Re4 {[%clk 0:00:04]}  Kh8 {[%clk 0:00:22]} 27. Rce1 {[%clk 0:00:04]}  Bg8 {[%clk 0:00:20]} 28. Qc3 {[%clk 0:00:02]}  f6 {[%clk 0:00:20]} 29. Ng6+ {[%clk 0:00:02]}  Nxg6 {[%clk 0:00:20]} 30. fxg6 {[%clk 0:00:02]}  Red7 {[%clk 0:00:19]} 31. Nc5 {[%clk 0:00:02]}  Bxc5 {[%clk 0:00:17]} 32. dxc5 {[%clk 0:00:03]}  Bd5 {[%clk 0:00:17]} 33. Re8+ {[%clk 0:00:00]}  Bg8 {[%clk 0:00:17]} 0-1


[Site "https://www.chess.com"]

[Event "Titled Tuesday Blitz December 20 Early 2022"]
[White "Moh, Teng Keong Deon"]
[Black "Szpar, Milosz"]
[WhiteFideId "5700868"]
[BlackFideId "1184989"]
[WhiteElo "2215"]
[BlackElo "2447"]
[Result "0-1"]
[Round "07"]
[TimeControl "180+2"]
[Date "2022.12.20"]
[WhiteClock "0:02:00"]
[BlackClock "0:02:40"]

1. e4 {[%clk 0:02:52]}  c5 {[%clk 0:02:59]} 2. c4 {[%clk 0:02:52]}  Nc6 {[%clk 0:02:58]} 3. Nc3 {[%clk 0:02:53]}  g6 {[%clk 0:02:58]} 4. g3 {[%clk 0:02:53]}  Bg7 {[%clk 0:02:59]} 5. Bg2 {[%clk 0:02:53]}  e6 {[%clk 0:03:00]} 6. Rb1 {[%clk 0:02:50]}  Nge7 {[%clk 0:03:00]} 7. Nge2 {[%clk 0:02:48]}  O-O {[%clk 0:03:00]} 8. O-O {[%clk 0:02:48]}  Nd4 {[%clk 0:02:59]} 9. a3 {[%clk 0:02:46]}  d5 {[%clk 0:02:57]} 10. exd5 {[%clk 0:02:45]}  exd5 {[%clk 0:02:57]} 11. Nxd4 {[%clk 0:02:45]}  cxd4 {[%clk 0:02:53]} 12. Nxd5 {[%clk 0:02:45]}  Bf5 {[%clk 0:02:44]} 13. Nxe7+ {[%clk 0:02:36]}  Qxe7 {[%clk 0:02:44]} 14. d3 {[%clk 0:02:36]}  Rfe8 {[%clk 0:02:45]} 15. Be4 {[%clk 0:02:12]}  Bxe4 {[%clk 0:02:44]} 16. Re1 {[%clk 0:02:13]}  Bf3 {[%clk 0:02:43]} 17. Rxe7 {[%clk 0:02:02]}  Bxd1 {[%clk 0:02:42]} 18. Rxb7 {[%clk 0:02:00]}  Bf3 {[%clk 0:02:40]} 0-1


[Site "https://www.chess.com"]

[Event "Titled Tuesday Blitz December 20 Early 2022"]
[White "NowInChess"]
[Black "Lasinika, M M D"]
[BlackFideId "9974555"]
[WhiteElo "2177"]
[BlackElo "1072"]
[Result "0-1"]
[Round "07"]
[TimeControl "180+2"]
[Date "2022.12.20"]
[WhiteClock "0:00:01"]
[BlackClock "0:00:25"]

1. e4 {[%clk 0:03:00]}  e6 {[%clk 0:02:59]} 2. d3 {[%clk 0:03:00]}  d5 {[%clk 0:02:59]} 3. Nd2 {[%clk 0:03:00]}  Nf6 {[%clk 0:03:00]} 4. Ngf3 {[%clk 0:03:00]}  c5 {[%clk 0:02:59]} 5. g3 {[%clk 0:03:00]}  Nc6 {[%clk 0:02:59]} 6. Bg2 {[%clk 0:03:00]}  d4 {[%clk 0:02:59]} 7. O-O {[%clk 0:02:58]}  e5 {[%clk 0:02:59]} 8. Nc4 {[%clk 0:02:57]}  Qc7 {[%clk 0:02:57]} 9. a4 {[%clk 0:02:58]}  Be6 {[%clk 0:02:56]} 10. b3 {[%clk 0:02:24]}  Nd7 {[%clk 0:02:52]} 11. Ng5 {[%clk 0:02:22]}  Qd8 {[%clk 0:02:39]} 12. Nxe6 {[%clk 0:02:13]}  fxe6 {[%clk 0:02:37]} 13. Qg4 {[%clk 0:02:08]}  Qe7 {[%clk 0:02:33]} 14. Bh3 {[%clk 0:02:04]}  Nd8 {[%clk 0:02:29]} 15. f4 {[%clk 0:01:45]}  Nf6 {[%clk 0:02:25]} 16. Qf3 {[%clk 0:01:39]}  exf4 {[%clk 0:02:21]} 17. Bxf4 {[%clk 0:01:33]}  Nf7 {[%clk 0:02:09]} 18. e5 {[%clk 0:01:21]}  Nd5 {[%clk 0:02:08]} 19. Nd6+ {[%clk 0:01:17]}  Nxd6 {[%clk 0:01:47]} 20. exd6 {[%clk 0:01:18]}  Qf6 {[%clk 0:01:40]} 21. Bxe6 {[%clk 0:00:57]}  Nxf4 {[%clk 0:01:33]} 22. Qxb7 {[%clk 0:00:28]}  Ne2+ {[%clk 0:00:58]} 23. Kh1 {[%clk 0:00:27]}  Qxe6 {[%clk 0:00:55]} 24. Qxa8+ {[%clk 0:00:25]}  Kd7 {[%clk 0:00:54]} 25. Rae1 {[%clk 0:00:12]}  Bxd6 {[%clk 0:00:52]} 26. Qe4 {[%clk 0:00:10]}  Qxe4+ {[%clk 0:00:39]} 27. dxe4 {[%clk 0:00:10]}  Nc3 {[%clk 0:00:38]} 28. Rf7+ {[%clk 0:00:06]}  Ke6 {[%clk 0:00:38]} 29. Rxa7 {[%clk 0:00:04]}  Rf8 {[%clk 0:00:31]} 30. Rxg7 {[%clk 0:00:02]}  Rf2 {[%clk 0:00:30]} 31. Rxh7 {[%clk 0:00:01]}  Be7 {[%clk 0:00:25]} 0-1


[Site "https://www.chess.com"]

[Event "Titled Tuesday Blitz December 20 Early 2022"]
[White "PavelChernomordik"]
[Black "Van der Nat, Nicholas"]
[BlackFideId "14300427"]
[WhiteElo "2434"]
[BlackElo "2362"]
[Result "0-1"]
[Round "07"]
[TimeControl "180+2"]
[Date "2022.12.20"]
[WhiteClock "0:00:10"]
[BlackClock "0:00:13"]

1. e4 {[%clk 0:03:00]}  e5 {[%clk 0:02:59]} 2. Nf3 {[%clk 0:03:00]}  Nc6 {[%clk 0:02:59]} 3. Bb5 {[%clk 0:03:00]}  a6 {[%clk 0:02:59]} 4. Ba4 {[%clk 0:02:59]}  Nf6 {[%clk 0:02:59]} 5. Qe2 {[%clk 0:02:59]}  b5 {[%clk 0:02:53]} 6. Bb3 {[%clk 0:02:59]}  Be7 {[%clk 0:02:52]} 7. d4 {[%clk 0:02:57]}  d6 {[%clk 0:02:44]} 8. c3 {[%clk 0:02:49]}  O-O {[%clk 0:02:42]} 9. h3 {[%clk 0:02:47]}  h6 {[%clk 0:02:38]} 10. a4 {[%clk 0:02:43]}  b4 {[%clk 0:02:09]} 11. a5 {[%clk 0:02:37]}  bxc3 {[%clk 0:01:57]} 12. bxc3 {[%clk 0:02:36]}  exd4 {[%clk 0:01:43]} 13. cxd4 {[%clk 0:02:35]}  Rb8 {[%clk 0:01:39]} 14. Bc4 {[%clk 0:02:26]}  d5 {[%clk 0:01:36]} 15. exd5 {[%clk 0:02:25]}  Bb4+ {[%clk 0:01:32]} 16. Kf1 {[%clk 0:02:14]}  Re8 {[%clk 0:01:18]} 17. Be3 {[%clk 0:02:13]}  Nxd5 {[%clk 0:01:16]} 18. Bxa6 {[%clk 0:02:04]}  Nxa5 {[%clk 0:00:44]} 19. Nbd2 {[%clk 0:01:26]}  c5 {[%clk 0:00:36]} 20. Bb5 {[%clk 0:01:09]}  Nc3 {[%clk 0:00:31]} 21. Bxe8 {[%clk 0:00:52]}  Nxe2 {[%clk 0:00:30]} 22. Bxf7+ {[%clk 0:00:47]}  Kxf7 {[%clk 0:00:30]} 23. Kxe2 {[%clk 0:00:44]}  Ba6+ {[%clk 0:00:29]} 24. Kd1 {[%clk 0:00:40]}  cxd4 {[%clk 0:00:27]} 25. Bf4 {[%clk 0:00:40]}  Rc8 {[%clk 0:00:22]} 26. Ne5+ {[%clk 0:00:39]}  Kg8 {[%clk 0:00:21]} 27. Re1 {[%clk 0:00:35]}  Qd5 {[%clk 0:00:20]} 28. Ng6 {[%clk 0:00:25]}  Bd3 {[%clk 0:00:18]} 29. Re5 {[%clk 0:00:22]}  Qf7 {[%clk 0:00:14]} 30. Raxa5 {[%clk 0:00:16]}  Bxg6 {[%clk 0:00:14]} 31. Rad5 {[%clk 0:00:10]}  Qxf4 {[%clk 0:00:13]} 0-1


[Site "https://www.chess.com"]

[Event "Titled Tuesday Blitz December 20 Early 2022"]
[White "Pietrek, Gerhard"]
[Black "Iskusnyh, Sergei"]
[WhiteFideId "24631698"]
[BlackFideId "4120027"]
[WhiteElo "1596"]
[BlackElo "2440"]
[Result "0-1"]
[Round "07"]
[TimeControl "180+2"]
[Date "2022.12.20"]
[WhiteClock "0:00:09"]
[BlackClock "0:00:24"]

1. e4 {[%clk 0:02:56]}  e6 {[%clk 0:02:59]} 2. d4 {[%clk 0:02:55]}  d5 {[%clk 0:03:00]} 3. exd5 {[%clk 0:02:53]}  exd5 {[%clk 0:03:01]} 4. Bd3 {[%clk 0:02:52]}  c5 {[%clk 0:03:00]} 5. dxc5 {[%clk 0:02:42]}  Bxc5 {[%clk 0:03:00]} 6. Nf3 {[%clk 0:02:42]}  Nf6 {[%clk 0:03:00]} 7. O-O {[%clk 0:02:42]}  O-O {[%clk 0:03:00]} 8. Bg5 {[%clk 0:02:39]}  Nc6 {[%clk 0:02:57]} 9. Nbd2 {[%clk 0:02:35]}  h6 {[%clk 0:02:55]} 10. Bh4 {[%clk 0:02:34]}  Bb6 {[%clk 0:02:54]} 11. Nb3 {[%clk 0:02:19]}  Bg4 {[%clk 0:02:53]} 12. Be2 {[%clk 0:02:11]}  Re8 {[%clk 0:02:49]} 13. c3 {[%clk 0:02:01]}  Qd6 {[%clk 0:02:43]} 14. Bg3 {[%clk 0:01:58]}  Qd7 {[%clk 0:02:27]} 15. Nfd4 {[%clk 0:01:52]}  Bxe2 {[%clk 0:02:08]} 16. Nxe2 {[%clk 0:01:53]}  Ne4 {[%clk 0:02:07]} 17. Ned4 {[%clk 0:01:53]}  Rad8 {[%clk 0:01:59]} 18. Qd3 {[%clk 0:01:52]}  Qg4 {[%clk 0:01:55]} 19. f3 {[%clk 0:01:42]}  Qg6 {[%clk 0:01:16]} 20. fxe4 {[%clk 0:01:41]}  dxe4 {[%clk 0:01:16]} 21. Qc4 {[%clk 0:01:41]}  Ne5 {[%clk 0:01:09]} 22. Bxe5 {[%clk 0:01:40]}  Rxe5 {[%clk 0:01:10]} 23. Rae1 {[%clk 0:01:31]}  Rde8 {[%clk 0:01:01]} 24. Re2 {[%clk 0:01:30]}  Rh5 {[%clk 0:00:57]} 25. Kh1 {[%clk 0:01:14]}  Re7 {[%clk 0:00:45]} 26. Rf5 {[%clk 0:01:02]}  Rh4 {[%clk 0:00:33]} 27. Qc8+ {[%clk 0:00:33]}  Kh7 {[%clk 0:00:32]} 28. Rd5 {[%clk 0:00:33]}  Qg3 {[%clk 0:00:29]} 29. h3 {[%clk 0:00:31]}  Bc7 {[%clk 0:00:28]} 30. Kg1 {[%clk 0:00:11]}  Qh2+ {[%clk 0:00:27]} 31. Kf2 {[%clk 0:00:10]}  Rf4+ {[%clk 0:00:25]} 32. Ke1 {[%clk 0:00:10]}  e3 {[%clk 0:00:24]} 33. Nf3 {[%clk 0:00:09]}  Qh1+ {[%clk 0:00:24]} 0-1


[Site "https://www.chess.com"]

[Event "Titled Tuesday Blitz December 20 Early 2022"]
[White "Pitcher, John"]
[Black "Kopylov_Alex"]
[WhiteFideId "411485"]
[WhiteElo "2210"]
[BlackElo "2790"]
[Result "1/2-1/2"]
[Round "07"]
[TimeControl "180+2"]
[Date "2022.12.20"]
[WhiteClock "0:00:10"]
[BlackClock "0:00:36"]

1. e4 {[%clk 0:03:00]}  e5 {[%clk 0:03:00]} 2. Nc3 {[%clk 0:03:00]}  Nc6 {[%clk 0:03:00]} 3. g3 {[%clk 0:03:00]}  h5 {[%clk 0:02:59]} 4. h3 {[%clk 0:03:00]}  h4 {[%clk 0:02:59]} 5. g4 {[%clk 0:03:00]}  Nge7 {[%clk 0:02:57]} 6. d3 {[%clk 0:02:58]}  Ng6 {[%clk 0:02:58]} 7. Nge2 {[%clk 0:02:57]}  Be7 {[%clk 0:02:58]} 8. f4 {[%clk 0:02:57]}  exf4 {[%clk 0:02:56]} 9. Nxf4 {[%clk 0:02:57]}  Nxf4 {[%clk 0:02:56]} 10. Bxf4 {[%clk 0:02:57]}  Bg5 {[%clk 0:02:57]} 11. Qd2 {[%clk 0:02:57]}  Bxf4 {[%clk 0:02:56]} 12. Qxf4 {[%clk 0:02:58]}  d6 {[%clk 0:02:57]} 13. Bg2 {[%clk 0:02:55]}  Be6 {[%clk 0:02:55]} 14. O-O {[%clk 0:02:51]}  Ne5 {[%clk 0:02:42]} 15. Rf2 {[%clk 0:02:45]}  Ng6 {[%clk 0:02:42]} 16. Qe3 {[%clk 0:02:45]}  c5 {[%clk 0:02:37]} 17. Rb1 {[%clk 0:02:34]}  O-O {[%clk 0:02:36]} 18. Rbf1 {[%clk 0:02:32]}  Rb8 {[%clk 0:02:33]} 19. a4 {[%clk 0:02:32]}  a6 {[%clk 0:02:32]} 20. Ne2 {[%clk 0:02:12]}  b5 {[%clk 0:02:32]} 21. axb5 {[%clk 0:02:12]}  axb5 {[%clk 0:02:33]} 22. Nf4 {[%clk 0:02:13]}  Qg5 {[%clk 0:02:33]} 23. Qd2 {[%clk 0:01:53]}  Nxf4 {[%clk 0:02:21]} 24. Qxf4 {[%clk 0:01:46]}  Qxf4 {[%clk 0:02:21]} 25. Rxf4 {[%clk 0:01:47]}  g5 {[%clk 0:02:20]} 26. Rf6 {[%clk 0:01:46]}  Kg7 {[%clk 0:02:20]} 27. c3 {[%clk 0:01:41]}  Rb6 {[%clk 0:02:17]} 28. d4 {[%clk 0:01:40]}  cxd4 {[%clk 0:02:07]} 29. cxd4 {[%clk 0:01:40]}  Ra6 {[%clk 0:01:55]} 30. d5 {[%clk 0:01:04]}  Bc8 {[%clk 0:01:54]} 31. R1f2 {[%clk 0:01:04]}  b4 {[%clk 0:01:54]} 32. Bf1 {[%clk 0:01:01]}  Rb6 {[%clk 0:01:51]} 33. e5 {[%clk 0:00:58]}  Bb7 {[%clk 0:01:44]} 34. Bc4 {[%clk 0:00:44]}  Ba6 {[%clk 0:01:30]} 35. Bb3 {[%clk 0:00:38]}  Bd3 {[%clk 0:01:28]} 36. e6 {[%clk 0:00:37]}  Bg6 {[%clk 0:01:28]} 37. Kg2 {[%clk 0:00:15]}  Rb7 {[%clk 0:01:26]} 38. Kf1 {[%clk 0:00:14]}  Rc8 {[%clk 0:01:20]} 39. exf7 {[%clk 0:00:13]}  Rxf7 {[%clk 0:01:19]} 40. Rxf7+ {[%clk 0:00:12]}  Bxf7 {[%clk 0:01:18]} 41. Rf5 {[%clk 0:00:11]}  Kg6 {[%clk 0:01:12]} 42. Ke2 {[%clk 0:00:11]}  Rc1 {[%clk 0:01:11]} 43. Kd2 {[%clk 0:00:10]}  Rh1 {[%clk 0:01:05]} 44. Bc2 {[%clk 0:00:10]}  Kg7 {[%clk 0:00:56]} 45. Rxg5+ {[%clk 0:00:09]}  Kh6 {[%clk 0:00:53]} 46. Rf5 {[%clk 0:00:09]}  Bg6 {[%clk 0:00:54]} 47. Rf6 {[%clk 0:00:09]}  Rh2+ {[%clk 0:00:53]} 48. Kd1 {[%clk 0:00:09]}  Rh1+ {[%clk 0:00:43]} 49. Kd2 {[%clk 0:00:10]}  Rh2+ {[%clk 0:00:43]} 50. Kd1 {[%clk 0:00:10]}  Rh1+ {[%clk 0:00:36]} 51. Kd2 {[%clk 0:00:10]} 1/2-1/2


[Site "https://www.chess.com"]

[Event "Titled Tuesday Blitz December 20 Early 2022"]
[White "Rakesh, Kumar Jena"]
[Black "HackingKid98"]
[WhiteFideId "5084822"]
[WhiteElo "2303"]
[BlackElo "2488"]
[Result "1-0"]
[Round "07"]
[TimeControl "180+2"]
[Date "2022.12.20"]
[WhiteClock "0:00:41"]
[BlackClock "0:01:11"]

1. e4 {[%clk 0:02:55]}  c5 {[%clk 0:02:58]} 2. Nf3 {[%clk 0:02:55]}  g6 {[%clk 0:02:59]} 3. c4 {[%clk 0:02:50]}  Nc6 {[%clk 0:02:59]} 4. d4 {[%clk 0:02:47]}  cxd4 {[%clk 0:02:59]} 5. Nxd4 {[%clk 0:02:45]}  Nf6 {[%clk 0:03:00]} 6. Nc3 {[%clk 0:02:44]}  d6 {[%clk 0:03:00]} 7. Nxc6 {[%clk 0:02:43]}  bxc6 {[%clk 0:03:00]} 8. Bd3 {[%clk 0:02:44]}  Bg7 {[%clk 0:03:00]} 9. O-O {[%clk 0:02:43]}  O-O {[%clk 0:03:01]} 10. h3 {[%clk 0:02:44]}  Rb8 {[%clk 0:02:56]} 11. Qe2 {[%clk 0:02:42]}  Nd7 {[%clk 0:02:55]} 12. Be3 {[%clk 0:02:40]}  Qa5 {[%clk 0:02:51]} 13. Rac1 {[%clk 0:02:31]}  Ne5 {[%clk 0:02:45]} 14. Bb1 {[%clk 0:02:28]}  Be6 {[%clk 0:02:44]} 15. b3 {[%clk 0:02:12]}  c5 {[%clk 0:02:44]} 16. Nd5 {[%clk 0:02:10]}  Nc6 {[%clk 0:02:40]} 17. f4 {[%clk 0:02:04]}  Rb7 {[%clk 0:02:32]} 18. f5 {[%clk 0:02:03]}  Bxd5 {[%clk 0:02:31]} 19. exd5 {[%clk 0:02:01]}  Nd4 {[%clk 0:02:30]} 20. Bxd4 {[%clk 0:01:58]}  Bxd4+ {[%clk 0:02:30]} 21. Kh1 {[%clk 0:01:58]}  Qd8 {[%clk 0:02:23]} 22. Rce1 {[%clk 0:01:52]}  a5 {[%clk 0:02:23]} 23. Qg4 {[%clk 0:01:51]}  Kg7 {[%clk 0:02:21]} 24. Re4 {[%clk 0:01:44]}  Bf6 {[%clk 0:02:20]} 25. Qg3 {[%clk 0:01:40]}  a4 {[%clk 0:02:20]} 26. Rg4 {[%clk 0:01:39]}  Rg8 {[%clk 0:02:12]} 27. fxg6 {[%clk 0:01:25]}  hxg6 {[%clk 0:02:12]} 28. h4 {[%clk 0:01:13]}  axb3 {[%clk 0:02:11]} 29. axb3 {[%clk 0:01:12]}  Rh8 {[%clk 0:01:58]} 30. Bxg6 {[%clk 0:00:58]}  fxg6 {[%clk 0:01:46]} 31. Rxg6+ {[%clk 0:00:58]}  Kh7 {[%clk 0:01:20]} 32. Qd3 {[%clk 0:00:53]}  Rxb3 {[%clk 0:01:19]} 33. Qf5 {[%clk 0:00:42]}  Qc8 {[%clk 0:01:11]} 34. Qh5# {[%clk 0:00:41]} 1-0


[Site "https://www.chess.com"]

[Event "Titled Tuesday Blitz December 20 Early 2022"]
[White "Rakhmanov_Aleksandr"]
[Black "rasmussvane"]
[WhiteElo "2797"]
[BlackElo "2949"]
[Result "0-1"]
[Round "07"]
[TimeControl "180+2"]
[Date "2022.12.20"]
[WhiteClock "0:00:03"]
[BlackClock "0:00:08"]

1. d4 {[%clk 0:02:53]}  Nf6 {[%clk 0:02:58]} 2. c4 {[%clk 0:02:53]}  e6 {[%clk 0:02:59]} 3. Nc3 {[%clk 0:02:52]}  Bb4 {[%clk 0:02:58]} 4. e3 {[%clk 0:02:53]}  O-O {[%clk 0:02:57]} 5. Nf3 {[%clk 0:02:53]}  Bxc3+ {[%clk 0:02:53]} 6. bxc3 {[%clk 0:02:52]}  d6 {[%clk 0:02:54]} 7. Bd3 {[%clk 0:02:52]}  Re8 {[%clk 0:02:45]} 8. O-O {[%clk 0:02:52]}  e5 {[%clk 0:02:26]} 9. e4 {[%clk 0:02:45]}  exd4 {[%clk 0:02:25]} 10. cxd4 {[%clk 0:02:45]}  Nxe4 {[%clk 0:02:25]} 11. Bxe4 {[%clk 0:02:46]}  Rxe4 {[%clk 0:02:24]} 12. Ng5 {[%clk 0:02:47]}  Rg4 {[%clk 0:01:50]} 13. Re1 {[%clk 0:02:21]}  h6 {[%clk 0:01:42]} 14. Qe2 {[%clk 0:01:22]}  Bd7 {[%clk 0:01:24]} 15. Nf3 {[%clk 0:01:07]}  Rg6 {[%clk 0:01:23]} 16. d5 {[%clk 0:01:06]}  Na6 {[%clk 0:01:23]} 17. Bb2 {[%clk 0:01:01]}  Nc5 {[%clk 0:01:17]} 18. Qe3 {[%clk 0:00:54]}  Bg4 {[%clk 0:00:52]} 19. Nd4 {[%clk 0:00:50]}  Qd7 {[%clk 0:00:52]} 20. Nb3 {[%clk 0:00:39]}  Bh3 {[%clk 0:00:45]} 21. g3 {[%clk 0:00:37]}  Na4 {[%clk 0:00:43]} 22. Bd4 {[%clk 0:00:34]}  b6 {[%clk 0:00:43]} 23. f3 {[%clk 0:00:30]}  Bf5 {[%clk 0:00:41]} 24. Re2 {[%clk 0:00:29]}  Rf8 {[%clk 0:00:31]} 25. Rae1 {[%clk 0:00:29]}  c6 {[%clk 0:00:28]} 26. Qe7 {[%clk 0:00:25]}  cxd5 {[%clk 0:00:23]} 27. cxd5 {[%clk 0:00:21]}  Nc5 {[%clk 0:00:21]} 28. Qxd7 {[%clk 0:00:12]}  Bxd7 {[%clk 0:00:22]} 29. Re7 {[%clk 0:00:12]}  Rd8 {[%clk 0:00:22]} 30. f4 {[%clk 0:00:04]}  Kf8 {[%clk 0:00:20]} 31. R7e3 {[%clk 0:00:03]}  Re8 {[%clk 0:00:20]} 32. Rxe8+ {[%clk 0:00:03]}  Bxe8 {[%clk 0:00:21]} 33. Nxc5 {[%clk 0:00:03]}  bxc5 {[%clk 0:00:16]} 34. Bc3 {[%clk 0:00:03]}  f5 {[%clk 0:00:06]} 35. Ba5 {[%clk 0:00:03]}  Bf7 {[%clk 0:00:07]} 36. Bd8 {[%clk 0:00:01]}  Bxd5 {[%clk 0:00:06]} 37. a3 {[%clk 0:00:01]}  Be4 {[%clk 0:00:06]} 38. Bc7 {[%clk 0:00:01]}  d5 {[%clk 0:00:06]} 39. Rc1 {[%clk 0:00:01]}  c4 {[%clk 0:00:05]} 40. Be5 {[%clk 0:00:02]}  Ra6 {[%clk 0:00:05]} 41. Bb2 {[%clk 0:00:02]}  Kf7 {[%clk 0:00:06]} 42. Rd1 {[%clk 0:00:02]}  Rb6 {[%clk 0:00:06]} 43. Bd4 {[%clk 0:00:02]}  Rb3 {[%clk 0:00:06]} 44. Bxa7 {[%clk 0:00:02]}  c3 {[%clk 0:00:07]} 45. Bd4 {[%clk 0:00:03]}  c2 {[%clk 0:00:07]} 46. Rc1 {[%clk 0:00:03]}  Rxa3 {[%clk 0:00:08]} 47. Kf2 {[%clk 0:00:03]}  Rd3 {[%clk 0:00:09]} 48. Be3 {[%clk 0:00:03]}  Rd1 {[%clk 0:00:08]} 49. Ke2 {[%clk 0:00:04]}  d4 {[%clk 0:00:07]} 50. Bd2 {[%clk 0:00:04]}  d3+ {[%clk 0:00:07]} 51. Ke3 {[%clk 0:00:04]}  Ke6 {[%clk 0:00:08]} 52. h4 {[%clk 0:00:03]}  h5 {[%clk 0:00:08]} 0-1


[Site "https://www.chess.com"]

[Event "Titled Tuesday Blitz December 20 Early 2022"]
[White "Rapy, Francois"]
[Black "MathiasWomacka"]
[WhiteFideId "26041324"]
[WhiteElo "1642"]
[BlackElo "2562"]
[Result "0-1"]
[Round "07"]
[TimeControl "180+2"]
[Date "2022.12.20"]
[WhiteClock "0:00:01"]
[BlackClock "0:00:46"]

1. e4 {[%clk 0:03:00]}  c5 {[%clk 0:02:55]} 2. Nc3 {[%clk 0:03:00]}  Nc6 {[%clk 0:02:54]} 3. Bb5 {[%clk 0:03:00]}  Nd4 {[%clk 0:02:51]} 4. Nf3 {[%clk 0:03:00]}  Nxb5 {[%clk 0:02:47]} 5. Nxb5 {[%clk 0:03:01]}  d6 {[%clk 0:02:44]} 6. d4 {[%clk 0:02:57]}  Nf6 {[%clk 0:02:42]} 7. e5 {[%clk 0:02:49]}  Qa5+ {[%clk 0:02:40]} 8. Nc3 {[%clk 0:02:41]}  Ne4 {[%clk 0:02:41]} 9. Bd2 {[%clk 0:02:35]}  Nxd2 {[%clk 0:02:39]} 10. Qxd2 {[%clk 0:02:34]}  cxd4 {[%clk 0:02:39]} 11. Qxd4 {[%clk 0:02:31]}  dxe5 {[%clk 0:02:36]} 12. Nxe5 {[%clk 0:02:24]}  Be6 {[%clk 0:02:27]} 13. O-O {[%clk 0:02:03]}  Rd8 {[%clk 0:02:26]} 14. Qe3 {[%clk 0:01:37]}  g6 {[%clk 0:02:17]} 15. Rfe1 {[%clk 0:01:01]}  a6 {[%clk 0:01:51]} 16. h3 {[%clk 0:00:53]}  Qc7 {[%clk 0:01:49]} 17. Nf3 {[%clk 0:00:20]}  Bg7 {[%clk 0:01:49]} 18. Ng5 {[%clk 0:00:21]}  Bf5 {[%clk 0:01:37]} 19. g4 {[%clk 0:00:18]}  Bc8 {[%clk 0:01:37]} 20. Qf3 {[%clk 0:00:12]}  O-O {[%clk 0:01:21]} 21. Nd5 {[%clk 0:00:13]}  Rxd5 {[%clk 0:01:20]} 22. Qxd5 {[%clk 0:00:13]}  Bxb2 {[%clk 0:01:16]} 23. Rad1 {[%clk 0:00:12]}  Bf6 {[%clk 0:01:15]} 24. Ne4 {[%clk 0:00:11]}  Bg7 {[%clk 0:01:15]} 25. Qd3 {[%clk 0:00:10]}  Be6 {[%clk 0:01:11]} 26. Ng5 {[%clk 0:00:07]}  Bxa2 {[%clk 0:01:07]} 27. Qd7 {[%clk 0:00:06]}  Qxd7 {[%clk 0:00:55]} 28. Rxd7 {[%clk 0:00:07]}  b5 {[%clk 0:00:55]} 29. Ne4 {[%clk 0:00:04]}  e6 {[%clk 0:00:51]} 30. Nc5 {[%clk 0:00:03]}  Bc4 {[%clk 0:00:50]} 31. Nxa6 {[%clk 0:00:02]}  Ra8 {[%clk 0:00:48]} 32. Nc5 {[%clk 0:00:01]}  h5 {[%clk 0:00:46]} 0-1


[Site "https://www.chess.com"]